bitfinex-derivatives/quotes_BNBF0:USTF0_20250507
["timestamp","ask_amount","ask_price","bid_price","bid_amount"]
[1746639969566,0.30632782,600.67,598.67,4.28607386]
[1746639969768,0.33296706,600.66,598.67,4.28607386]
[1746639970166,0.30632782,600.65,598.67,4.28607386]
[1746639970363,0.33297815,600.64,598.67,4.28607386]
[1746639970867,0.30632782,600.63,598.67,4.28607386]
[1746639971068,0.33298924,600.62,598.67,4.28607386]
[1746639971667,0.30633122,600.61,598.67,4.28607386]
[1746639972363,0.33300033,600.6,598.67,4.28607386]
[1746639972567,0.30633122,600.59,598.67,4.28607386]
[1746639974366,0.29018378,600.58,598.67,4.28607386]
[1746639974868,0.30633122,600.57,598.67,4.28607386]
[1746639975167,0.33302251,600.56,598.67,4.28607386]
[1746639975467,0.30633122,600.55,598.67,4.28607386]
[1746639975669,0.3330336,600.54,598.67,4.28607386]
[1746639976168,0.30633122,600.53,598.67,4.28607386]
[1746639976369,0.33304469,600.52,598.67,4.28607386]
[1746639976566,0.30633122,600.51,598.67,4.28607386]
[1746639976964,0.63938146,600.51,598.67,4.28607386]
[1746639977370,0.59652468,600.5,598.67,4.28607386]
[1746639977574,0.30633122,600.49,598.67,4.28607386]
[1746639980270,0.29019588,600.48,598.67,4.28607386]
[1746639980566,0.30633122,600.47,598.67,4.28607386]
[1746639983267,0.2901983,600.46,598.67,4.28607386]
[1746639983767,0.30633122,600.45,598.67,4.28607386]
[1746639986173,0.33305024,600.51,598.67,4.28607386]
[1746639986372,0.29015959,600.44,598.67,4.28607386]
[1746639988969,0.33305024,600.51,598.67,4.28607386]
[1746639989374,0.29014386,600.43,598.67,4.28607386]
[1746639989574,0.33305024,600.51,598.67,4.28607386]
[1746639989875,0.30622503,600.5,598.67,4.28607386]
[1746639990874,0.29013661,600.49,598.67,4.28607386]
[1746639991977,0.33305024,600.51,598.67,4.28607386]
[1746639992378,0.29013661,600.48,598.67,4.28607386]
[1746639992579,0.29013661,600.48,598.67,5.34819139]
[1746639993075,0.30620591,600.47,598.67,5.34819139]
[1746639993981,0.29013661,600.48,598.67,5.34819139]
[1746639994180,0.30620273,600.47,598.67,5.34819139]
[1746639995179,0.30620273,600.47,598.75,1.06211753]
[1746639995379,0.2901233,600.46,598.75,1.06211753]
[1746639995578,0.30620273,600.45,598.75,1.06211753]
[1746639996379,0.2901233,600.46,598.75,1.06211753]
[1746639997277,0.30621453,600.45,598.75,1.06211753]
[1746639997479,0.30621453,600.45,598.7,1.06211753]
[1746639998285,0.29013661,600.44,598.71,0.957]
[1746639998582,0.29013661,600.44,598.72,0.778]
[1746639998789,0.29013661,600.44,598.73,0.33404038]
[1746639999086,0.30621639,600.43,598.73,0.33404038]
[1746639999286,0.30621639,600.43,598.74,0.95]
[1746639999482,0.29013661,600.44,598.76,0.33402364]
[1746640000186,0.30621611,600.43,598.76,0.33402364]
[1746640001389,0.29013661,600.44,598.76,0.33402364]
[1746640003989,1.27038724,601.35,598.76,0.33402364]
[1746640004293,0.29002417,600.43,598.76,0.33402364]
[1746640004794,0.33264586,601.24,598.76,0.33402364]
[1746640005193,0.30620979,601.23,598.76,0.33402364]
[1746640005491,0.30620979,601.22,598.76,0.33402364]
[1746640005792,0.59624725,601.22,598.76,0.33402364]
[1746640006092,0.33266799,601.2,598.76,0.33402364]
[1746640006293,0.30620979,601.19,598.76,0.33402364]
[1746640006591,0.33268459,601.17,598.76,0.33402364]
[1746640006893,0.30620979,601.16,598.76,0.33402364]
[1746640007095,0.3327012,601.14,598.76,0.33402364]
[1746640007289,0.30620979,601.13,598.76,0.33402364]
[1746640007492,0.3327178,601.11,598.76,0.33402364]
[1746640007894,0.30620979,601.1,598.76,0.33402364]
[1746640008087,0.33273441,601.08,598.76,0.33402364]
[1746640008489,0.30620979,601.07,598.76,0.33402364]
[1746640008689,0.33275101,601.05,598.76,0.33402364]
[1746640009295,0.30620979,601.04,598.76,0.33402364]
[1746640009491,0.33276762,601.02,598.76,0.33402364]
[1746640009894,0.30620979,601.01,598.76,0.33402364]
[1746640010094,0.33278423,600.99,598.76,0.33402364]
[1746640010295,0.30620979,600.98,598.76,0.33402364]
[1746640010495,0.33280085,600.96,598.76,0.33402364]
[1746640010993,0.30620979,600.95,598.76,0.33402364]
[1746640011197,0.33281192,600.94,598.76,0.33402364]
[1746640011598,0.30620979,600.93,598.76,0.33402364]
[1746640011797,0.332823,600.92,598.76,0.33402364]
[1746640011994,0.30620979,600.91,598.76,0.33402364]
[1746640012397,0.33283408,600.9,598.76,0.33402364]
[1746640012699,0.30620979,600.89,598.76,0.33402364]
[1746640012892,0.33284516,600.88,598.76,0.33402364]
[1746640013500,0.59628473,600.87,598.76,0.33402364]
[1746640013697,0.33285623,600.86,598.76,0.33402364]
[1746640013895,0.63906602,600.86,598.76,0.33402364]
[1746640014293,0.30620979,600.85,598.76,0.33402364]
[1746640014494,0.33286731,600.84,598.76,0.33402364]
[1746640014999,0.30620979,600.83,598.76,0.33402364]
[1746640015299,0.33287839,600.82,598.76,0.33402364]
[1746640015599,0.30620979,600.81,598.76,0.33402364]
[1746640015801,0.33288948,600.8,598.77,0.831]
[1746640015994,0.33288948,600.8,598.87,0.33396229]
[1746640016302,0.59629077,600.79,598.87,0.33396229]
[1746640016602,0.30620979,600.78,598.87,0.33396229]
[1746640017503,0.30620979,600.78,598.88,0.801]
[1746640017702,0.3329061,600.77,598.9,0.33394556]
[1746640017899,0.30620979,600.76,598.9,0.33394556]
[1746640019504,1.26200461,600.75,598.9,0.33394556]
[1746640019706,1.26200461,600.74,598.9,0.33394556]
[1746640019900,1.5682144,600.73,598.9,0.33394556]
[1746640020099,1.5682144,600.72,598.9,0.33394556]
[1746640020305,1.56823124,600.71,598.9,0.33394556]
[1746640020501,1.26202145,600.7,598.9,0.33394556]
[1746640020700,1.26200531,600.69,598.9,0.33394556]
[1746640020903,1.5682151,600.68,598.9,0.33394556]
[1746640021099,1.5682151,600.67,598.9,0.33394556]
[1746640021300,1.26200531,600.66,598.9,0.33394556]
[1746640021503,1.26200854,600.65,598.9,0.33394556]
[1746640021799,1.56821833,600.64,598.9,0.33394556]
[1746640022000,1.26200854,600.63,598.9,0.33394556]
[1746640022203,0.3329061,600.77,598.9,0.33394556]
[1746640022204,1.56821833,600.62,598.9,0.33394556]
[1746640022402,1.56821833,600.61,598.9,0.33394556]
[1746640022608,1.26200854,600.6,598.9,0.33394556]
[1746640022806,1.26200854,600.59,598.9,0.33394556]
[1746640023005,1.56821833,600.58,598.9,0.33394556]
[1746640023204,1.56821833,600.57,598.9,0.33394556]
[1746640023402,1.26200854,600.56,598.9,0.33394556]
[1746640023600,1.26200854,600.55,598.9,0.33394556]
[1746640023801,1.26200854,600.54,598.9,0.33394556]
[1746640024000,1.26200854,600.53,598.9,0.33394556]
[1746640024204,1.26202152,600.52,598.9,0.33394556]
[1746640024404,1.26202276,600.51,598.9,0.33394556]
[1746640024700,1.26202276,600.5,598.9,0.33394556]
[1746640024900,1.26202276,600.49,598.9,0.33394556]
[1746640025208,1.26202276,600.48,598.9,0.33394556]
[1746640025507,1.26205938,600.47,598.9,0.33394556]
[1746640025706,1.26205938,600.46,598.9,0.33394556]
[1746640025902,1.26205938,600.45,598.9,0.33394556]
[1746640026101,1.26205938,600.44,598.9,0.33394556]
[1746640026307,1.26205938,600.43,598.9,0.33394556]
[1746640026604,1.26205938,600.42,598.9,0.33394556]
[1746640026802,1.26202215,600.41,598.9,0.33394556]
[1746640027007,1.26202215,600.4,598.9,0.33394556]
[1746640027208,1.26205711,600.39,598.9,0.33394556]
[1746640027408,1.26205711,600.38,598.9,0.33394556]
[1746640027709,1.26205711,600.37,598.9,0.33394556]
[1746640027906,1.26202838,600.36,598.9,0.33394556]
[1746640028104,1.26202838,600.35,598.9,0.33394556]
[1746640028307,1.26202838,600.34,598.9,0.33394556]
[1746640028506,0.2901233,600.48,598.9,0.33394556]
[1746640028707,1.26201342,600.47,598.9,0.33394556]
[1746640028907,0.2901233,600.48,598.9,0.33394556]
[1746640029109,1.26207949,600.47,598.9,0.33394556]
[1746640029309,1.26207949,600.46,598.9,0.33394556]
[1746640029508,0.2901233,600.48,598.9,0.33394556]
[1746640030107,0.3061814,600.47,598.9,0.33394556]
[1746640031210,0.3061814,600.76,598.9,0.33394556]
[1746640031410,0.29010154,600.46,598.9,0.33394556]
[1746640031604,0.3061814,600.76,598.9,0.33394556]
[1746640031806,0.3329061,600.77,598.9,0.33394556]
[1746640032110,0.30614615,600.76,598.9,0.33394556]
[1746640032413,0.30614615,600.76,599.11,1.06211753]
[1746640033008,0.29001571,600.75,599.11,1.06211753]
[1746640033310,0.30614615,600.74,599.11,1.06211753]
[1746640034211,0.30614615,600.74,598.9,0.33394556]
[1746640034509,0.59616186,600.73,598.95,0.29001571]
[1746640034709,0.30614615,600.72,598.95,0.29001571]
[1746640035209,0.30614615,600.72,598.97,0.33390653]
[1746640037204,0.30614615,600.76,598.97,0.33390653]
[1746640037406,0.29005318,600.71,598.97,0.33390653]
[1746640037709,0.30614615,600.7,598.97,0.33390653]
[1746640040309,0.29005076,600.69,598.97,0.33390653]
[1746640040508,0.30614574,600.68,598.97,0.33390653]
[1746640040812,0.29005076,600.69,598.97,0.33390653]
[1746640042114,0.30619649,600.68,598.97,0.33390653]
[1746640043215,0.3329061,600.77,598.97,0.33390653]
[1746640043417,0.29007252,600.67,598.97,0.33390653]
[1746640043616,0.3329061,600.77,598.97,0.33390653]
[1746640043816,0.30619585,600.76,598.97,0.33390653]
[1746640044917,0.29006285,600.75,598.97,0.33390653]
[1746640045612,0.30619585,600.74,598.97,0.33390653]
[1746640046317,0.29006526,600.73,598.97,0.33390653]
[1746640046716,0.30619585,600.72,598.97,0.33390653]
[1746640047817,0.30619585,600.72,598.98,0.763]
[1746640048018,0.30619585,600.72,599.0,0.33388981]
[1746640048920,0.30619585,600.72,599.01,0.598]
[1746640049115,0.30619585,600.72,599.03,0.33387309]
[1746640049314,0.29006164,600.71,599.03,0.33387309]
[1746640049614,0.30619585,600.7,599.03,0.33387309]
[1746640052423,0.29006406,600.69,599.03,0.33387309]
[1746640052722,0.30619585,600.68,599.03,0.33387309]
[1746640055324,0.29008098,600.67,599.03,0.33387309]
[1746640055624,0.30619585,600.66,599.03,0.33387309]
[1746640058327,0.2900834,600.65,599.03,0.33387309]
[1746640058728,0.30619585,600.64,599.03,0.33387309]
[1746640059227,0.2900834,600.65,599.03,0.33387309]
[1746640059524,0.2900834,600.65,599.03,1.18587309]
[1746640063628,0.30620852,600.64,599.03,1.18587309]
[1746640064334,0.2900834,600.63,599.03,1.18587309]
[1746640064533,0.30620852,600.62,599.03,1.18587309]
[1746640067334,0.29008582,600.61,599.03,1.18587309]
[1746640067835,0.30620852,600.6,599.03,1.18587309]
[1746640068732,0.29008582,600.61,599.03,1.18587309]
[1746640069040,0.3061792,600.6,599.03,1.18587309]
[1746640070331,0.29006164,600.59,599.03,1.18587309]
[1746640070637,0.3061792,600.58,599.03,1.18587309]
[1746640071938,0.3061792,600.58,599.03,1.98887309]
[1746640073342,0.29006406,600.57,599.03,1.98887309]
[1746640073741,0.29006406,600.57,599.03,3.00787309]
[1746640073941,0.3061792,600.56,599.03,3.00787309]
[1746640074543,0.29006406,600.57,599.03,3.00787309]
[1746640076045,0.3329061,600.77,599.03,3.00787309]
[1746640076345,0.30617249,600.76,599.03,3.00787309]
[1746640076540,0.59616403,600.76,599.03,3.00787309]
[1746640077045,0.30617249,600.75,599.03,3.00787309]
[1746640078746,0.30617249,600.75,599.03,3.62387309]
[1746640082350,0.29001692,600.74,599.03,3.62387309]
[1746640082645,0.59618941,600.74,599.03,3.62387309]
[1746640083045,0.30617249,600.73,599.03,3.62387309]
[1746640084948,0.29001692,600.74,599.03,3.62387309]
[1746640085151,0.3329061,600.77,599.03,3.62387309]
[1746640085351,0.29003384,600.72,599.03,3.62387309]
[1746640088052,0.3329061,600.77,599.03,3.62387309]
[1746640088348,0.30616078,600.76,599.03,3.62387309]
[1746640088653,0.59607139,600.76,599.03,3.62387309]
[1746640088952,0.30616078,600.75,599.03,3.62387309]
[1746640091253,0.30616078,600.76,599.03,3.62387309]
[1746640091453,0.3329061,600.77,599.03,3.62387309]
[1746640091454,0.29004109,600.74,599.03,3.62387309]
[1746640092456,0.30616174,600.73,599.03,3.62387309]
[1746640097355,0.30616174,600.76,599.03,3.62387309]
[1746640097653,0.29004351,600.72,599.03,3.62387309]
[1746640098060,0.30616174,600.71,599.03,3.62387309]
[1746640100361,0.29004592,600.7,599.03,3.62387309]
[1746640100660,0.30616174,600.69,599.03,3.62387309]
[1746640103264,0.29004834,600.68,599.03,3.62387309]
[1746640103665,0.30616174,600.67,599.03,3.62387309]
[1746640106465,0.29003988,600.66,599.03,3.62387309]
[1746640106964,0.30616174,600.65,599.03,3.62387309]
[1746640109369,0.30616174,600.76,599.03,3.62387309]
[1746640109569,0.29005318,600.64,599.03,3.62387309]
[1746640109764,0.30616174,600.76,599.03,3.62387309]
[1746640110068,0.30616174,600.75,599.03,3.62387309]
[1746640110268,0.30616174,600.76,599.03,3.62387309]
[1746640111065,0.29003988,600.75,599.03,3.62387309]
[1746640111372,0.30616174,600.74,599.03,3.62387309]
[1746640112269,0.30616174,600.76,599.03,3.62387309]
[1746640112468,0.29003988,600.73,599.03,3.62387309]
[1746640112670,0.30616174,600.72,599.03,3.62387309]
[1746640114567,0.29003988,600.73,599.03,3.62387309]
[1746640114768,0.30615504,600.72,599.03,3.62387309]
[1746640115272,0.30615504,600.76,599.03,3.62387309]
[1746640115466,0.2900423,600.71,599.03,3.62387309]
[1746640115771,0.30615504,600.7,599.03,3.62387309]
[1746640118374,0.30615504,600.76,599.03,3.62387309]
[1746640118573,0.29003746,600.69,599.03,3.62387309]
[1746640118773,0.30615504,600.68,599.03,3.62387309]
[1746640119777,0.29003746,600.69,599.03,3.62387309]
[1746640119977,0.30615704,600.68,599.03,3.62387309]
[1746640120478,2.28401592,600.67,599.03,3.62387309]
[1746640120679,1.27161042,600.66,599.03,3.62387309]
[1746640120973,1.57776746,600.65,599.03,3.62387309]
[1746640121174,1.57776746,600.64,599.03,3.62387309]
[1746640121478,2.59017296,600.63,599.03,3.62387309]
[1746640121679,2.59027299,600.62,599.03,3.62387309]
[1746640121873,1.57786749,600.61,599.03,3.62387309]
[1746640122072,1.57786749,600.6,599.03,3.62387309]
[1746640122273,1.0124055,600.61,599.03,3.62387309]
[1746640122274,2.59027299,600.59,599.03,3.62387309]
[1746640122473,2.59027299,600.58,599.03,3.62387309]
[1746640122675,1.27171045,600.57,599.03,3.62387309]
[1746640122876,2.28411595,600.56,599.03,3.62387309]
[1746640123074,1.27224497,600.55,599.03,3.62387309]
[1746640123279,2.28465047,600.54,599.03,3.62387309]
[1746640123576,2.28465047,600.53,599.03,3.62387309]
[1746640123777,1.27224497,600.52,599.03,3.62387309]
[1746640123978,2.28465047,600.51,599.03,3.62387309]
[1746640124178,2.28465047,600.5,599.03,3.62387309]
[1746640124375,2.28465047,600.49,599.03,3.62387309]
[1746640124580,1.0124055,600.49,599.03,3.62387309]
[1746640124775,2.28474086,600.48,599.03,3.62387309]
[1746640124981,2.28474086,600.47,599.03,3.62387309]
[1746640125182,1.2723325,600.46,599.03,3.62387309]
[1746640125381,2.284738,600.45,599.03,3.62387309]
[1746640125583,2.284738,600.44,599.03,3.62387309]
[1746640125882,2.284738,600.43,599.03,3.62387309]
[1746640126083,2.28477986,600.42,599.03,3.62387309]
[1746640126381,2.28477986,600.41,599.03,3.62387309]
[1746640126582,1.0124055,600.4,599.03,3.62387309]
[1746640126784,1.27296171,600.39,599.03,3.62387309]
[1746640126977,2.28536721,600.38,599.03,3.62387309]
[1746640127179,2.28536721,600.37,599.03,3.62387309]
[1746640127382,2.28536721,600.36,599.03,3.62387309]
[1746640127580,2.28536721,600.35,599.03,3.62387309]
[1746640127779,1.27296171,600.34,599.03,3.62387309]
[1746640127980,0.29008461,600.45,599.03,3.62387309]
[1746640127981,2.28536721,600.33,599.03,3.62387309]
[1746640128181,0.29008461,600.45,599.03,3.62387309]
[1746640128182,2.28536721,600.32,599.03,3.62387309]
[1746640128382,2.28536721,600.31,599.03,3.62387309]
[1746640128584,1.27296171,600.3,599.03,3.62387309]
[1746640128878,2.28536721,600.29,599.03,3.62387309]
[1746640129083,2.28536721,600.28,599.03,3.62387309]
[1746640129283,2.28540653,600.27,599.03,3.62387309]
[1746640129477,1.2729981,600.26,599.03,3.62387309]
[1746640129682,2.2854036,600.25,599.03,3.62387309]
[1746640129982,2.2854036,600.24,599.03,3.62387309]
[1746640130183,1.2729981,600.23,599.03,3.62387309]
[1746640130382,1.2729981,600.22,599.03,3.62387309]
[1746640130580,1.0124055,600.23,599.03,3.62387309]
[1746640130779,0.29010154,600.45,599.03,3.62387309]
[1746640133085,0.3329061,600.77,599.03,3.62387309]
[1746640133384,0.29003746,600.45,599.03,3.62387309]
[1746640133679,0.3329061,600.77,599.03,3.62387309]
[1746640133981,0.30616021,600.76,599.03,3.62387309]
[1746640134884,0.29003746,600.75,599.03,3.62387309]
[1746640135184,0.30616021,600.74,599.03,3.62387309]
[1746640137383,0.29003746,600.75,599.03,3.62387309]
[1746640137887,0.30615263,600.74,599.03,3.62387309]
[1746640139288,0.29003988,600.73,599.03,3.62387309]
[1746640139486,0.30615263,600.72,599.03,3.62387309]
[1746640142288,0.30615263,600.76,599.03,3.62387309]
[1746640142487,0.2900423,600.71,599.03,3.62387309]
[1746640142690,0.30615263,600.7,599.03,3.62387309]
[1746640143293,0.2900423,600.71,599.03,3.62387309]
[1746640143593,0.30615795,600.7,599.03,3.62387309]
[1746640145394,0.29004472,600.69,599.03,3.62387309]
[1746640145995,0.30615795,600.68,599.03,3.62387309]
[1746640146294,0.29004472,600.69,599.03,3.62387309]
[1746640146594,0.30616012,600.68,599.03,3.62387309]
[1746640148597,0.29003746,600.67,599.03,3.62387309]
[1746640149296,0.30616012,600.66,599.03,3.62387309]
[1746640151397,0.29004955,600.65,599.03,3.62387309]
[1746640151597,0.30616012,600.64,599.03,3.62387309]
[1746640151898,0.29004955,600.65,599.03,3.62387309]
[1746640154099,0.3329061,600.77,599.03,3.62387309]
[1746640154293,0.30616151,600.76,599.03,3.62387309]
[1746640154497,0.59614822,600.76,599.03,3.62387309]
[1746640154998,0.28998671,600.76,599.03,3.62387309]
[1746640160006,0.30616858,600.75,599.03,3.62387309]
[1746640160502,0.29003867,600.74,599.03,3.62387309]
[1746640161708,0.30615365,600.73,599.03,3.62387309]
[1746640163406,0.29004109,600.72,599.03,3.62387309]
[1746640164106,0.30615952,600.71,599.03,3.62387309]
[1746640166403,0.29004351,600.7,599.03,3.62387309]
[1746640166607,0.30615952,600.69,599.03,3.62387309]
[1746640167307,0.30615952,600.69,599.06,1.06211753]
[1746640169008,0.30615952,600.69,599.08,0.33384522]
[1746640169607,0.2900423,600.68,599.08,0.33384522]
[1746640169806,0.30615952,600.67,599.08,0.33384522]
[1746640170107,0.30615952,600.67,599.09,0.616]
[1746640170308,0.30615952,600.67,599.11,0.33382851]
[1746640171206,0.30615952,600.67,599.12,0.665]
[1746640171508,0.30615952,600.67,599.14,0.33381179]
[1746640175104,0.3329061,600.77,599.14,0.33381179]
[1746640175508,0.29003746,600.66,599.14,0.33381179]
[1746640175710,0.30615162,600.76,599.14,0.33381179]
[1746640175908,0.3329061,600.77,599.14,0.33381179]
[1746640176513,0.59610883,600.76,599.14,0.33381179]
[1746640176907,0.30614991,600.75,599.14,0.33381179]
[1746640178507,0.30614991,600.76,599.14,0.33381179]
[1746640178707,0.29002659,600.74,599.14,0.33381179]
[1746640179211,0.30614991,600.73,599.14,0.33381179]
[1746640181414,0.29003021,600.72,599.14,0.33381179]
[1746640181811,0.30614991,600.71,599.14,0.33381179]
[1746640184415,0.29003263,600.7,599.14,0.33381179]
[1746640185716,0.30614991,600.69,599.15,0.816]
[1746640185911,0.30614991,600.69,599.17,0.33379508]
[1746640187417,0.29003142,600.68,599.17,0.33379508]
[1746640187816,0.30616223,600.67,599.17,0.33379508]
[1746640188415,0.30616223,600.67,599.17,1.05779508]
[1746640190517,0.3329061,600.77,599.17,1.05779508]
[1746640190518,0.29003142,600.66,599.17,1.05779508]
[1746640190813,0.30616223,600.65,599.17,1.05779508]
[1746640193426,0.29003384,600.64,599.17,1.05779508]
[1746640193925,0.30616223,600.63,599.17,1.05779508]
[1746640195324,0.29003384,600.64,599.17,1.05779508]
[1746640195529,0.30616134,600.62,599.17,1.05779508]
[1746640195730,0.30616134,600.63,599.17,1.05779508]
[1746640196428,1.55960182,600.62,599.17,1.05779508]
[1746640196630,1.26956557,600.61,599.17,1.05779508]
[1746640196822,1.57572691,600.6,599.17,1.05779508]
[1746640197027,1.26956557,600.59,599.17,1.05779508]
[1746640197228,1.57572691,600.58,599.17,1.05779508]
[1746640197527,1.57572691,600.57,599.17,1.05779508]
[1746640197825,1.26956557,600.56,599.17,1.05779508]
[1746640198030,1.57572691,600.55,599.17,1.05779508]
[1746640198228,1.26956557,600.54,599.17,1.05779508]
[1746640198529,1.26956557,600.53,599.17,1.05779508]
[1746640198729,1.26956557,600.52,599.17,1.05779508]
[1746640198929,1.26956557,600.51,599.17,1.05779508]
[1746640199127,1.27039108,600.5,599.17,1.05779508]
[1746640199333,1.27039108,600.49,599.17,1.05779508]
[1746640199533,1.27039108,600.48,599.17,1.05779508]
[1746640199833,1.27039108,600.47,599.17,1.05779508]
[1746640200133,1.27039108,600.46,599.17,1.05779508]
[1746640200328,1.27039108,600.45,599.17,1.05779508]
[1746640200633,1.27039108,600.44,599.17,1.05779508]
[1746640200827,1.27039108,600.43,599.17,1.05779508]
[1746640201031,1.27039108,600.42,599.17,1.05779508]
[1746640201327,1.27039108,600.41,599.17,1.05779508]
[1746640201527,1.27039108,600.4,599.17,1.05779508]
[1746640201727,0.29003867,600.51,599.17,1.05779508]
[1746640201728,1.27039108,600.39,599.17,1.05779508]
[1746640202031,1.27039108,600.38,599.17,1.05779508]
[1746640202228,1.27039108,600.37,599.17,1.05779508]
[1746640202532,1.27039108,600.36,599.17,1.05779508]
[1746640202732,1.27039108,600.35,599.17,1.05779508]
[1746640202933,1.27039108,600.34,599.17,1.69179508]
[1746640203133,1.27039108,600.33,599.17,1.69179508]
[1746640203332,0.29005197,600.51,599.17,1.69179508]
[1746640203333,1.27039108,600.32,599.17,1.69179508]
[1746640203533,1.27039108,600.31,599.17,1.69179508]
[1746640203733,1.27039108,600.3,599.17,1.69179508]
[1746640203933,1.27039108,600.29,599.17,1.69179508]
[1746640204134,1.27039108,600.28,599.17,1.69179508]
[1746640204331,1.27039108,600.27,599.17,1.69179508]
[1746640204529,1.27039108,600.26,599.17,1.69179508]
[1746640204727,0.29005197,600.51,599.17,1.69179508]
[1746640204728,1.27039108,600.25,599.17,1.69179508]
[1746640204929,1.27039108,600.24,599.17,1.69179508]
[1746640205134,1.27039108,600.23,599.17,1.69179508]
[1746640205434,1.27039108,600.22,599.17,1.69179508]
[1746640205634,1.27039108,600.21,599.17,1.69179508]
[1746640205835,1.27039108,600.2,599.17,1.69179508]
[1746640206034,2.28430928,600.19,599.17,1.69179508]
[1746640206234,2.28430928,600.18,599.17,1.69179508]
[1746640206433,2.28430928,600.17,599.17,1.69179508]
[1746640206635,2.28430928,600.16,599.17,1.69179508]
[1746640206835,2.28430928,600.15,599.17,1.69179508]
[1746640207035,2.28430928,600.14,599.17,1.69179508]
[1746640207236,1.0139182,600.13,599.17,1.69179508]
[1746640207535,1.0139182,600.12,599.17,1.69179508]
[1746640207734,1.0139182,600.11,599.17,1.69179508]
[1746640207931,1.0139182,600.1,599.17,1.69179508]
[1746640208335,1.0139182,600.09,599.17,1.69179508]
[1746640208536,1.0139182,600.08,599.17,1.69179508]
[1746640208736,0.29008703,600.51,599.17,1.69179508]
[1746640208931,2.27963953,600.5,599.17,1.69179508]
[1746640209129,2.27963953,600.49,599.17,1.69179508]
[1746640209334,2.27963953,600.48,599.17,1.69179508]
[1746640209631,2.27963953,600.47,599.17,1.69179508]
[1746640209831,2.27963953,600.46,599.17,1.69179508]
[1746640210034,2.27963953,600.46,599.17,2.31179508]
[1746640210035,1.26596321,600.45,599.17,2.31179508]
[1746640210234,2.27963953,600.44,599.17,2.31179508]
[1746640210431,2.27963953,600.43,599.17,2.31179508]
[1746640210632,2.27963953,600.42,599.17,2.31179508]
[1746640210833,2.27963953,600.41,599.17,2.31179508]
[1746640211035,1.26596321,600.4,599.17,2.31179508]
[1746640211237,1.26596321,600.39,599.17,2.31179508]
[1746640211538,2.27963042,600.38,599.17,2.31179508]
[1746640211738,2.27963042,600.37,599.17,2.31179508]
[1746640211940,1.2659541,600.36,599.17,2.31179508]
[1746640212134,1.2659541,600.35,599.17,2.31179508]
[1746640212339,2.27963042,600.34,599.17,2.31179508]
[1746640212538,2.27963042,600.33,599.17,2.31179508]
[1746640212739,2.27960883,600.32,599.17,2.31179508]
[1746640212936,2.27959239,600.31,599.17,2.31179508]
[1746640213140,1.26593754,600.3,599.17,2.31179508]
[1746640213342,2.27959227,600.29,599.17,2.31179508]
[1746640213543,2.27959227,600.28,599.17,2.31179508]
[1746640213841,2.27959227,600.27,599.17,2.31179508]
[1746640214036,2.27959227,600.26,599.17,2.31179508]
[1746640214344,2.27959227,600.25,599.17,2.31179508]
[1746640214536,1.26591337,600.24,599.17,2.31179508]
[1746640214738,2.2795681,600.23,599.17,2.31179508]
[1746640214937,1.26591337,600.22,599.17,2.31179508]
[1746640215137,1.26591337,600.21,599.17,2.31179508]
[1746640215337,2.2795681,600.2,599.17,2.31179508]
[1746640215542,0.29006647,600.51,599.17,2.31179508]
[1746640215543,2.2795681,600.19,599.17,2.31179508]
[1746640215743,2.2795681,600.18,599.17,2.31179508]
[1746640215943,0.29006647,600.51,599.17,2.31179508]
[1746640217147,0.3329061,600.77,599.17,2.31179508]
[1746640217455,0.29000604,600.51,599.17,2.31179508]
[1746640217849,0.30612831,600.76,599.17,2.31179508]
[1746640218142,0.3329061,600.77,599.17,2.31179508]
[1746640218543,0.30612932,600.76,599.17,2.31179508]
[1746640218950,0.29000604,600.75,599.17,2.31179508]
[1746640219445,0.30612932,600.74,599.17,2.31179508]
[1746640220550,0.29000846,600.73,599.17,2.31179508]
[1746640220745,0.30612932,600.72,599.17,2.31179508]
[1746640221548,0.30612932,600.72,599.17,3.16179508]
[1746640223352,0.30612932,600.76,599.17,3.16179508]
[1746640223654,0.29000604,600.71,599.17,3.16179508]
[1746640223950,0.30612932,600.7,599.17,3.16179508]
[1746640227354,0.30612932,600.7,599.17,4.22391261]
[1746640228458,0.29000604,600.71,599.17,4.22391261]
[1746640229254,0.3329061,600.77,599.17,4.22391261]
[1746640229459,0.29002779,600.7,599.17,4.22391261]
[1746640229660,0.29002779,600.7,599.17,3.16179508]
[1746640232166,0.3329061,600.77,599.17,3.16179508]
[1746640232467,0.29002779,600.69,599.17,3.16179508]
[1746640232763,0.3329061,600.77,599.17,3.16179508]
[1746640233567,0.28991061,600.76,599.17,3.16179508]
[1746640234368,0.30617156,600.75,599.17,3.16179508]
[1746640235463,0.290029,600.74,599.17,3.16179508]
[1746640235767,0.30617156,600.73,599.17,3.16179508]
[1746640238366,0.30617156,600.76,599.17,3.16179508]
[1746640238566,0.29003142,600.72,599.17,3.16179508]
[1746640238772,0.30617156,600.71,599.17,3.16179508]
[1746640239070,1.27182405,600.7,599.17,3.16179508]
[1746640239270,1.27182405,600.69,599.17,3.16179508]
[1746640239464,1.27182405,600.68,599.17,3.16179508]
[1746640239770,1.57799561,600.67,599.17,3.16179508]
[1746640239966,1.27182405,600.66,599.17,3.16179508]
[1746640240165,1.27182405,600.65,599.17,3.16179508]
[1746640240369,2.2869762,600.64,599.17,3.16179508]